[Event "12th Chennai Open 2020"]
[Site "Chennai"]
[Date "2020.01.23"]
[Round "8.9"]
[White "Vasquez Schroeder, Rodrigo"]
[Black "Jubin Jimmy"]
[Result "0-1"]
[ECO "E11"]
[WhiteElo "2487"]
[BlackElo "2193"]
[Annotator "ChessBase"]
[PlyCount "148"]
[EventDate "2020.01.19"]
[EventType "swiss"]
[EventCountry "IND"]
[SourceTitle "playchess.com"]
[Source "ChessBase"]
[SourceQuality "1"]
[TimeControl "5400+30"]

1. d4 {[%emt 0:01:38]} Nf6 {[%emt 0:00:00]} 2. c4 {[%emt 0:00:05]} e6 {[%emt 0:00:00]} 3. Nf3 {[%emt 0:00:07]} Bb4+ {[%emt 0:00:00]} 4. Nbd2 {[%emt 0:00:10]} O-O {[%emt 0:00:00]} 5. a3 {[%emt 0:00:09]} Be7 {[%emt 0:00:02]} 6. e4 {[%emt 0:00:07]} d6 {[%emt 0:00:07]} 7. Be2 {[%emt 0:00:37]} Nbd7 {[%emt 0:00:23]} 8. Qc2 {[%emt 0:00:39]} e5 {[%emt 0:00:30]} 9. O-O {[%emt 0:03:11]} a5 {[%emt 0:01:04]} 10. b3 {[%emt 0:00:12]} c6 {[%emt 0:03:21]} 11. Bb2 {[%emt 0:00:22]} Qc7 {[%emt 0:01:10]} 12. Rfe1 {[%emt 0:00:54]} Re8 {[%emt 0:02:22]} 13. Bf1 {[%emt 0:00:07]} Bf8 {[%emt 0:01:48]} 14. h3 {[%emt 0:02:33]} h6 {[%emt 0:07:34]} 15. Rad1 {[%emt 0:01:13]} Nh7 {[%emt 0:10:43]} 16. b4 {[%emt 0:04:06]} axb4 {[%emt 0:01:22]} 17. axb4 {[%emt 0:00:06]} b6 {[%emt 0:10:23]} 18. Qb3 {[%emt 0:01:56]} c5 {[%emt 0:15:22]} 19. dxc5 {[%emt 0:10:06]} dxc5 {[%emt 0:01:34]} 20. b5 {[%emt 0:00:06]} Be7 {[%emt 0:00:49]} 21. Nb1 {[%emt 0:01:28]} Nhf8 {[%emt 0:00:28]} 22. Nc3 {[%emt 0:00:07]} Ne6 {[%emt 0:01:07]} 23. Nd5 {[%emt 0:00:19]} Qb8 {[%emt 0:00:31]} 24. Ra1 {[%emt 0:05:12]} Rxa1 {[%emt 0:01:01]} 25. Rxa1 {[%emt 0:00:07]} Bd6 {[%emt 0:02:53]} 26. Nh4 {[%emt 0:02:02]} Nd4 {[%emt 0:03:32]} 27. Qg3 {[%emt 0:01:52]} Bb7 {[%emt 0:00:53]} 28. Bc1 {[%emt 0:09:36]} Kh8 {[%emt 0:06:32]} 29. Nf3 {[%emt 0:07:24]} Bxd5 {[%emt 0:03:39]} 30. cxd5 {[%emt 0:00:07]} Nf6 {[%emt 0:00:19]} 31. Nd2 {[%emt 0:00:12]} Qb7 {[%emt 0:03:31]} 32. Ra6 {[%emt 0:00:21]} Rb8 {[%emt 0:01:15]} 33. Qa3 {[%emt 0:02:19]} Qc7 {[%emt 0:03:10]} 34. Ra7 {[%emt 0:03:06]} Rb7 {[%emt 0:03:31]} 35. Rxb7 {[%emt 0:01:08]} Qxb7 {[%emt 0:00:01]} 36. Qa6 {[%emt 0:00:22]} Qc7 {[%emt 0:00:21]} 37. Bd3 {[%emt 0:01:17]} Nd7 {[%emt 0:02:40]} 38. Nc4 {[%emt 0:00:26]} Kh7 {[%emt 0:00:24]} 39. Be3 {[%emt 0:01:18]} Qb8 {[%emt 0:02:17]} 40. Kf1 {[%emt 0:01:53]} g6 {[%emt 0:00:55]} 41. g3 {[%emt 0:00:16]} Kg7 {[%emt 0:00:10]} 42. Kg2 {[%emt 0:00:27]} Kh7 {[%emt 0:00:43]} 43. Qa3 {[%emt 0:05:46]} Bf8 {[%emt 0:02:51]} 44. Qa4 {[%emt 0:01:44]} Bd6 {[%emt 0:00:42]} 45. f3 {[%emt 0:01:07]} Kg7 {[%emt 0:01:43]} 46. h4 {[%emt 0:00:24]} Kh7 {[%emt 0:00:49]} 47. Kf2 {[%emt 0:02:18]} Kg7 {[%emt 0:00:08]} 48. Kg2 {[%emt 0:02:57]} Kh7 {[%emt 0:00:52]} 49. Qa3 {[%emt 0:01:06]} Bf8 {[%emt 0:00:31]} 50. Qa2 {[%emt 0:01:39]} Bd6 {[%emt 0:00:12]} 51. Kf2 {[%emt 0:00:35]} Kg7 {[%emt 0:01:10]} 52. Bf1 {[%emt 0:00:45]} Bc7 {[%emt 0:01:00]} 53. Bh3 {[%emt 0:00:23]} Nf6 {[%emt 0:00:07]} 54. Qd2 {[%emt 0:03:40]} Ng8 {[%emt 0:00:57]} 55. Bd7 {[%emt 0:01:27]} Kh7 {[%emt 0:01:27]} 56. Kg2 {[%emt 0:01:15]} Qd8 {[%emt 0:01:09]} 57. Bc6 {[%emt 0:00:12]} Kg7 {[%emt 0:00:34]} 58. Bxd4 {[%emt 0:00:57]} cxd4 {[%emt 0:00:20]} 59. Qb4 {[%emt 0:00:36]} Nf6 {[%emt 0:00:16]} 60. d6 {[%emt 0:00:33]} Bb8 {[%emt 0:00:11]} 61. g4 {[%emt 0:01:50]} Nh7 {[%emt 0:01:09]} 62. Kg3 {[%emt 0:01:01]} Nf8 {[%emt 0:00:11]} 63. Qa3 {[%emt 0:01:16]} Ne6 {[%emt 0:01:00]} 64. Bd5 {[%emt 0:00:55]} Nf4 {[%emt 0:01:17]} 65. Qa8 {[%emt 0:03:26]} Ne2+ {[%emt 0:01:44]} 66. Kf2 {[%emt 0:00:10]} Nc3 {[%emt 0:00:19]} 67. g5 {[%emt 0:00:31]} hxg5 {[%emt 0:00:03]} 68. Qb7 {[%emt 0:00:04]} Qf6 {[%emt 0:01:48]} 69. Bxf7 {[%emt 0:07:23]} Qxf7 {[%emt 0:02:15]} 70. Qxb8 {[%emt 0:00:13]} g4 {[%emt 0:00:48]} 71. Nxe5 {[%emt 0:00:39]} Qa2+ {[%emt 0:00:32]} 72. Kg3 {[%emt 0:00:12]} Ne2+ {[%emt 0:00:01]} 73. Kf2 {[%emt 0:01:18]} Nf4+ {[%emt 0:00:13]} 74. Kg3 {[%emt 0:00:05]} Nh5+ {[%emt 0:02:14] Kf2} 0-1

[Event "12th Chennai Open 2020"]
[Site "Chennai"]
[Date "2020.01.23"]
[Round "8.10"]
[White "Taher, Yoseph Theolifus"]
[Black "Harshavardhan G B"]
[Result "1/2-1/2"]
[ECO "C26"]
[WhiteElo "2462"]
[BlackElo "2343"]
[Annotator "ChessBase"]
[PlyCount "100"]
[EventDate "2020.01.19"]
[EventType "swiss"]
[EventCountry "IND"]
[SourceTitle "playchess.com"]
[Source "ChessBase"]
[SourceQuality "1"]
[TimeControl "5400+30"]

1. e4 {[%emt 0:00:00]} e5 {[%emt 0:00:00]} 2. Nc3 {[%emt 0:00:00]} Nf6 {[%emt 0:00:00]} 3. g3 {[%emt 0:00:00]} Bc5 {[%emt 0:01:01]} 4. Bg2 {[%emt 0:00:08]} Nc6 {[%emt 0:00:16]} 5. Nge2 {[%emt 0:00:13]} d6 {[%emt 0:00:41]} 6. d3 {[%emt 0:02:43]} a6 {[%emt 0:00:22]} 7. O-O {[%emt 0:00:23]} Be6 {[%emt 0:00:22]} 8. Nd5 {[%emt 0:00:19]} Qd7 {[%emt 0:01:37]} 9. c3 {[%emt 0:02:25]} Ba7 {[%emt 0:02:36]} 10. d4 {[%emt 0:02:24]} exd4 {[%emt 0:02:56]} 11. Nxf6+ {[%emt 0:00:19]} gxf6 {[%emt 0:00:05]} 12. cxd4 {[%emt 0:00:06]} Bg4 {[%emt 0:02:08]} 13. f3 {[%emt 0:00:19]} Bh3 {[%emt 0:00:23]} 14. Bxh3 {[%emt 0:00:29]} Qxh3 {[%emt 0:00:07]} 15. Be3 {[%emt 0:00:08]} Qd7 {[%emt 0:02:41]} 16. Qd2 {[%emt 0:00:25]} O-O-O {[%emt 0:05:03]} 17. d5 {[%emt 0:00:08]} Bxe3+ {[%emt 0:00:10]} 18. Qxe3 {[%emt 0:00:02]} Ne7 {[%emt 0:01:39]} 19. a4 {[%emt 0:00:58]} Kb8 {[%emt 0:00:43]} 20. b4 {[%emt 0:00:07]} Rhe8 {[%emt 0:03:12]} 21. b5 {[%emt 1:28:54]} a5 {[%emt 0:00:54]} 22. Qd2 {[%emt 0:00:00]} f5 {[%emt 0:00:36]} 23. Nd4 {[%emt 0:00:00]} b6 {[%emt 0:05:11]} 24. exf5 {[%emt 0:00:00]} Ka8 {[%emt 0:02:32]} 25. g4 {[%emt 0:00:00]} Rc8 {[%emt 0:02:49]} 26. Ne2 {[%emt 0:00:00]} Ng8 {[%emt 0:02:04]} 27. Ng3 {[%emt 0:00:00]} Qd8 {[%emt 0:01:44]} 28. Rae1 {[%emt 0:00:00]} Nf6 {[%emt 0:03:19]} 29. Rxe8 {[%emt 0:00:00]} Qxe8 {[%emt 0:00:05]} 30. Re1 {[%emt 0:00:00]} Qd8 {[%emt 0:01:15]} 31. h4 {[%emt 0:00:00]} Nd7 {[%emt 0:01:41]} 32. Qg5 {[%emt 0:00:00]} Qh8 {[%emt 0:02:18]} 33. f6 {[%emt 0:00:00]} Nxf6 {[%emt 0:03:22]} 34. Qf5 {[%emt 0:00:00]} Kb8 {[%emt 0:01:41]} 35. Kg2 {[%emt 0:00:00]} Qg7 {[%emt 0:05:01]} 36. g5 {[%emt 0:00:00]} Ng8 {[%emt 0:01:06]} 37. Nh5 {[%emt 0:00:00]} Qb2+ {[%emt 0:03:12]} 38. Kh3 {[%emt 0:00:00]} Qd2 {[%emt 0:01:46]} 39. Re4 {[%emt 0:00:00]} h6 {[%emt 0:02:48]} 40. Ng3 {[%emt 0:00:00]} hxg5 {[%emt 0:00:58]} 41. Qxg5 {[%emt 0:00:00]} Qc3 {[%emt 0:01:00]} 42. Rf4 {[%emt 0:00:00]} f6 {[%emt 0:00:55]} 43. Qg7 {[%emt 0:00:00]} Qe3 {[%emt 0:00:57]} 44. Rf5 {[%emt 0:00:00]} Ne7 {[%emt 0:01:24]} 45. Rxf6 {[%emt 0:00:00]} Nxd5 {[%emt 0:00:07]} 46. Rf8 {[%emt 0:00:00]} Qe6+ {[%emt 0:02:13]} 47. Kh2 {[%emt 0:00:00]} Ne3 {[%emt 0:00:34]} 48. Rxc8+ {[%emt 0:00:00]} Kxc8 {[%emt 0:00:12]} 49. Kg1 {[%emt 0:00:00]} Qa2 {[%emt 0:00:45]} 50. Ne4 {[%emt 0:00:00]} Qe2 {[%emt 0:02:51]} 1/2-1/2

[Event "12th Chennai Open 2020"]
[Site "Chennai"]
[Date "2020.01.23"]
[Round "8.13"]
[White "Saravana, Krishnan P."]
[Black "Vignesh N R"]
[Result "0-1"]
[ECO "B90"]
[WhiteElo "2313"]
[BlackElo "2472"]
[Annotator "ChessBase"]
[PlyCount "86"]
[EventDate "2020.01.19"]
[EventType "swiss"]
[EventCountry "IND"]
[SourceTitle "playchess.com"]
[Source "ChessBase"]
[SourceQuality "1"]
[TimeControl "5400+30"]

1. e4 {[%emt 0:00:00]} c5 {[%emt 0:02:50]} 2. Nf3 {[%emt 0:00:00]} d6 {[%emt 0:00:01]} 3. d4 {[%emt 0:00:01]} cxd4 {[%emt 0:00:02]} 4. Nxd4 {[%emt 0:00:06]} Nf6 {[%emt 0:00:04]} 5. Nc3 {[%emt 0:01:05]} a6 {[%emt 0:02:26]} 6. Bd2 {[%emt 0:01:37]} Nc6 {[%emt 0:05:08]} 7. Nxc6 {[%emt 0:01:44]} bxc6 {[%emt 0:00:02]} 8. Bd3 {[%emt 0:00:10]} g6 {[%emt 0:00:38]} 9. O-O {[%emt 0:09:08]} Bg7 {[%emt 0:00:11]} 10. Kh1 {[%emt 0:03:14]} O-O {[%emt 0:02:24]} 11. Qe1 {[%emt 0:00:55]} a5 {[%emt 0:06:05]} 12. Rd1 {[%emt 0:06:17]} a4 {[%emt 0:01:01]} 13. f4 {[%emt 0:00:27]} Nd7 {[%emt 0:01:56]} 14. f5 {[%emt 0:16:12]} e6 {[%emt 0:03:13]} 15. fxe6 {[%emt 0:13:31]} fxe6 {[%emt 0:00:15]} 16. Qg3 {[%emt 0:01:28]} Ne5 {[%emt 0:07:32]} 17. Bg5 {[%emt 0:01:30]} Rxf1+ {[%emt 0:02:00]} 18. Bxf1 {[%emt 0:01:56]} Qf8 {[%emt 0:01:09]} 19. Bc1 {[%emt 0:10:24]} d5 {[%emt 0:07:47]} 20. Be2 {[%emt 0:05:13]} Ba6 {[%emt 0:07:01]} 21. Bxa6 {[%emt 0:05:02]} Rxa6 {[%emt 0:00:13]} 22. exd5 {[%emt 0:00:13]} cxd5 {[%emt 0:01:40]} 23. a3 {[%emt 0:01:07]} Qf5 {[%emt 0:01:54]} 24. Bf4 {[%emt 0:04:48]} Nc4 {[%emt 0:00:30]} 25. Bc1 {[%emt 0:00:49]} Nd6 {[%emt 0:22:36]} 26. Qe1 {[%emt 0:03:49]} Rc6 {[%emt 0:03:14]} 27. h3 {[%emt 0:06:58]} d4 {[%emt 0:02:52]} 28. Ne2 {[%emt 0:00:48]} Qxc2 {[%emt 0:02:31]} 29. Bf4 {[%emt 0:03:14]} Nf5 {[%emt 0:03:17]} 30. Ng1 {[%emt 0:01:26]} Qc5 {[%emt 0:02:41]} 31. Nf3 {[%emt 0:00:15]} Qd5 {[%emt 0:00:24]} 32. Qb4 {[%emt 0:01:20]} Qb3 {[%emt 0:04:59]} 33. Qxb3 {[%emt 0:00:40]} axb3 {[%emt 0:00:02]} 34. Rd3 {[%emt 0:00:11]} g5 {[%emt 0:02:04]} 35. Nxg5 {[%emt 0:01:17]} e5 {[%emt 0:00:01]} 36. Bd2 {[%emt 0:00:11]} Rc2 {[%emt 0:00:43]} 37. Ne4 {[%emt 0:00:51]} Rxb2 {[%emt 0:00:09]} 38. a4 {[%emt 0:00:11]} Rb1+ {[%emt 0:04:14]} 39. Kh2 {[%emt 0:00:04]} b2 {[%emt 0:00:12]} 40. Rb3 {[%emt 0:00:05]} Ne3 {[%emt 0:00:03]} 41. g4 {[%emt 0:01:26]} Nc4 {[%emt 0:00:22]} 42. Rb8+ {[%emt 0:00:35]} Kf7 {[%emt 0:00:16]} 43. Rb7+ {[%emt 0:00:31]} Ke6 {[%emt 0:00:41]} 0-1

[Event "12th Chennai Open 2020"]
[Site "Chennai"]
[Date "2020.01.23"]
[Round "8.14"]
[White "Neverov, Valeriy"]
[Black "Samant Aditya S"]
[Result "1-0"]
[ECO "E42"]
[WhiteElo "2460"]
[BlackElo "2296"]
[Annotator "ChessBase"]
[PlyCount "97"]
[EventDate "2020.01.19"]
[EventType "swiss"]
[EventCountry "IND"]
[SourceTitle "playchess.com"]
[Source "ChessBase"]
[SourceQuality "1"]
[TimeControl "5400+30"]

1. d4 {[%emt 0:03:16]} Nf6 {[%emt 0:00:00]} 2. c4 {[%emt 0:00:05]} e6 {[%emt 0:00:00]} 3. Nc3 {[%emt 0:00:20]} Bb4 {[%emt 0:00:00]} 4. e3 {[%emt 0:00:05]} b6 {[%emt 0:00:20]} 5. Nge2 {[%emt 0:01:48]} c5 {[%emt 0:00:39]} 6. a3 {[%emt 0:00:24]} Ba5 {[%emt 0:00:10]} 7. Ng3 {[%emt 0:05:49]} Bb7 {[%emt 0:06:55]} 8. Bd2 {[%emt 0:02:36]} O-O {[%emt 0:14:54]} 9. Bd3 {[%emt 0:05:16]} d5 {[%emt 0:13:35]} 10. cxd5 {[%emt 0:03:17]} cxd4 {[%emt 0:02:04]} 11. exd4 {[%emt 0:01:03]} Bxc3 {[%emt 0:00:13]} 12. bxc3 {[%emt 0:01:05]} Qxd5 {[%emt 0:00:16]} 13. f3 {[%emt 0:01:17]} Ba6 {[%emt 0:03:05]} 14. Bc2 {[%emt 0:15:43]} Nc6 {[%emt 0:03:03]} 15. Kf2 {[%emt 0:00:14]} e5 {[%emt 0:12:58]} 16. Ne4 {[%emt 0:12:02]} Nd7 {[%emt 0:07:48]} 17. Be3 {[%emt 0:05:43]} Rad8 {[%emt 0:08:17]} 18. Re1 {[%emt 0:16:44]} f5 {[%emt 0:04:50]} 19. Nd2 {[%emt 0:01:26]} Kh8 {[%emt 0:02:53]} 20. Kg1 {[%emt 0:04:39]} exd4 {[%emt 0:04:21]} 21. cxd4 {[%emt 0:00:14]} Nf6 {[%emt 0:00:25]} 22. Bb3 {[%emt 0:03:42]} Qd6 {[%emt 0:01:05]} 23. Nc4 {[%emt 0:01:21]} Bxc4 {[%emt 0:00:14]} 24. Bxc4 {[%emt 0:00:03]} Nxd4 {[%emt 0:01:12]} 25. Bf2 {[%emt 0:02:19]} f4 {[%emt 0:05:21]} 26. Qd3 {[%emt 0:03:33]} Nc6 {[%emt 0:00:41]} 27. Qxd6 {[%emt 0:00:28]} Rxd6 {[%emt 0:00:04]} 28. Rac1 {[%emt 0:00:18]} Na5 {[%emt 0:01:50]} 29. Bf1 {[%emt 0:04:21]} Rd7 {[%emt 0:00:28]} 30. Bb5 {[%emt 0:00:31]} Rdf7 {[%emt 0:00:27]} 31. Red1 {[%emt 0:00:31]} Nb3 {[%emt 0:05:12]} 32. Rc4 {[%emt 0:02:17]} g5 {[%emt 0:01:05]} 33. h4 {[%emt 0:00:13]} h6 {[%emt 0:00:40]} 34. Rd6 {[%emt 0:00:50]} Nc5 {[%emt 0:01:11]} 35. hxg5 {[%emt 0:02:05]} hxg5 {[%emt 0:00:05]} 36. Bxc5 {[%emt 0:00:10]} bxc5 {[%emt 0:00:04]} 37. Rxc5 {[%emt 0:00:07]} Nh7 {[%emt 0:01:27]} 38. Bd3 {[%emt 0:00:59]} Rg7 {[%emt 0:00:06]} 39. Rh6 {[%emt 0:00:34]} Rfg8 {[%emt 0:00:54]} 40. Rxg5 {[%emt 0:00:51]} Rd7 {[%emt 0:00:34]} 41. Rxg8+ {[%emt 0:01:30]} Kxg8 {[%emt 0:00:05]} 42. Bxh7+ {[%emt 0:00:04]} Rxh7 {[%emt 0:00:06]} 43. Rxh7 {[%emt 0:00:11]} Kxh7 {[%emt 0:00:04]} 44. a4 {[%emt 0:00:17]} a5 {[%emt 0:00:31]} 45. Kf2 {[%emt 0:00:40]} Kg6 {[%emt 0:00:05]} 46. Ke2 {[%emt 0:00:48]} Kf5 {[%emt 0:01:04]} 47. Kd3 {[%emt 0:00:19]} Ke5 {[%emt 0:00:06]} 48. Kc4 {[%emt 0:00:31]} Kf5 {[%emt 0:00:36]} 49. Kd5 {[%emt 0:00:14]} 1-0

[Event "12th Chennai Open 2020"]
[Site "Chennai"]
[Date "2020.01.23"]
[Round "8.15"]
[White "Kunal, M.."]
[Black "Lugovskoy, Maxim"]
[Result "0-1"]
[ECO "C06"]
[WhiteElo "2288"]
[BlackElo "2453"]
[Annotator "ChessBase"]
[PlyCount "90"]
[EventDate "2020.01.19"]
[EventType "swiss"]
[EventCountry "IND"]
[SourceTitle "playchess.com"]
[Source "ChessBase"]
[SourceQuality "1"]
[TimeControl "5400+30"]

1. e4 {[%emt 0:00:00]} e6 {[%emt 0:03:24]} 2. d4 {[%emt 0:00:00]} d5 {[%emt 0:00:04]} 3. Nd2 {[%emt 0:00:00]} Nf6 {[%emt 0:00:05]} 4. e5 {[%emt 0:00:01]} Nfd7 {[%emt 0:00:04]} 5. Bd3 {[%emt 0:00:10]} c5 {[%emt 0:00:05]} 6. c3 {[%emt 0:00:07]} Nc6 {[%emt 0:00:03]} 7. Ne2 {[%emt 0:00:07]} cxd4 {[%emt 0:00:04]} 8. cxd4 {[%emt 0:00:10]} f6 {[%emt 0:00:02]} 9. exf6 {[%emt 0:00:12]} Qxf6 {[%emt 0:00:04]} 10. Nf3 {[%emt 0:01:33]} h6 {[%emt 0:00:04]} 11. O-O {[%emt 0:00:55]} Bd6 {[%emt 0:00:03]} 12. Ng3 {[%emt 0:03:23]} O-O {[%emt 0:00:06]} 13. Bc2 {[%emt 0:03:51]} Rf7 {[%emt 0:00:53]} 14. Re1 {[%emt 0:02:21]} Nf8 {[%emt 0:01:26]} 15. Nh5 {[%emt 0:02:36]} Qd8 {[%emt 0:00:10]} 16. Ne5 {[%emt 0:01:38]} Nxe5 {[%emt 0:00:37]} 17. dxe5 {[%emt 0:00:11]} Bc5 {[%emt 0:00:02]} 18. Be3 {[%emt 0:00:17]} d4 {[%emt 0:08:43]} 19. Bf4 {[%emt 0:00:12]} Bd7 {[%emt 0:01:17]} 20. Bd3 {[%emt 0:00:37]} Be8 {[%emt 0:04:53]} 21. Qg4 {[%emt 0:03:41]} Kh8 {[%emt 0:00:34]} 22. Bd2 {[%emt 0:01:18]} Rc7 {[%emt 0:14:42]} 23. h4 {[%emt 0:14:21]} a5 {[%emt 0:12:08]} 24. a3 {[%emt 0:00:39]} b5 {[%emt 0:00:15]} 25. b4 {[%emt 0:10:10]} Bb6 {[%emt 0:00:38]} 26. Nf4 {[%emt 0:06:22]} Bf7 {[%emt 0:05:14]} 27. h5 {[%emt 0:01:44]} axb4 {[%emt 0:03:11]} 28. axb4 {[%emt 0:02:37]} Rca7 {[%emt 0:00:07]} 29. Rxa7 {[%emt 0:01:19]} Rxa7 {[%emt 0:00:02]} 30. Ng6+ {[%emt 0:00:20]} Kg8 {[%emt 0:02:40]} 31. Rc1 {[%emt 0:07:47]} Bc7 {[%emt 0:02:58]} 32. Qe2 {[%emt 0:15:38]} Nd7 {[%emt 0:06:49]} 33. Bxb5 {[%emt 0:09:22]} Bxg6 {[%emt 0:05:29]} 34. hxg6 {[%emt 0:00:04]} Nxe5 {[%emt 0:00:04]} 35. f4 {[%emt 0:01:28]} d3 {[%emt 0:01:43]} 36. Qe4 {[%emt 0:00:09]} Ra2 {[%emt 0:09:25]} 37. fxe5 {[%emt 0:02:48]} Bb6+ {[%emt 0:02:39]} 38. Be3 {[%emt 0:01:51]} Re2 {[%emt 0:00:10]} 39. Bxb6 {[%emt 0:00:42]} d2 {[%emt 0:00:01]} 40. Bxe2 {[%emt 0:05:11]} dxc1=Q+ {[%emt 0:00:09]} 41. Kh2 {[%emt 0:00:06]} Qd5 {[%emt 0:03:50]} 42. Qxd5 {[%emt 0:03:08]} exd5 {[%emt 0:00:01]} 43. Bf2 {[%emt 0:00:57]} Qd2 {[%emt 0:00:32]} 44. Bf3 {[%emt 0:00:10]} Qxf2 {[%emt 0:00:06]} 45. Bxd5+ {[%emt 0:00:03]} Kf8 {[%emt 0:00:02]} 0-1

[Event "12th Chennai Open 2020"]
[Site "Chennai"]
[Date "2020.01.23"]
[Round "8.16"]
[White "Navin, Kanna T.u."]
[Black "Harikrishnan.A.Ra"]
[Result "0-1"]
[ECO "C14"]
[WhiteElo "2265"]
[BlackElo "2444"]
[Annotator "ChessBase"]
[PlyCount "56"]
[EventDate "2020.01.19"]
[EventType "swiss"]
[EventCountry "IND"]
[SourceTitle "playchess.com"]
[Source "ChessBase"]
[SourceQuality "1"]
[TimeControl "5400+30"]

1. e4 {[%emt 0:00:00]} e6 {[%emt 0:00:49]} 2. d4 {[%emt 0:00:00]} d5 {[%emt 0:00:17]} 3. Nc3 {[%emt 0:01:27]} Nf6 {[%emt 0:00:06]} 4. Bg5 {[%emt 0:00:38]} Be7 {[%emt 0:00:03]} 5. e5 {[%emt 0:00:36]} Nfd7 {[%emt 0:00:02]} 6. Bxe7 {[%emt 0:00:20]} Qxe7 {[%emt 0:00:02]} 7. f4 {[%emt 0:00:19]} a6 {[%emt 0:00:01]} 8. Nf3 {[%emt 0:00:10]} c5 {[%emt 0:00:01]} 9. Qd2 {[%emt 0:05:40]} Nc6 {[%emt 0:00:02]} 10. Be2 {[%emt 0:03:46]} cxd4 {[%emt 0:01:07]} 11. Nxd4 {[%emt 0:00:02]} Ndxe5 {[%emt 0:04:40]} 12. Nf5 {[%emt 0:00:02]} exf5 {[%emt 0:01:49]} 13. Nxd5 {[%emt 0:00:43]} Nf3+ {[%emt 0:01:15]} 14. gxf3 {[%emt 0:00:02]} Qh4+ {[%emt 0:00:09]} 15. Kd1 {[%emt 0:00:01]} O-O {[%emt 0:00:26]} 16. c4 {[%emt 0:00:01]} Be6 {[%emt 0:04:13]} 17. Kc2 {[%emt 0:00:24]} Rfd8 {[%emt 0:02:14]} 18. Qe1 {[%emt 0:04:45]} Nd4+ {[%emt 0:02:38]} 19. Kd3 {[%emt 0:01:01]} Qh6 {[%emt 0:04:16]} 20. Kxd4 {[%emt 0:04:44]} Qxf4+ {[%emt 0:00:03]} 21. Kc3 {[%emt 0:00:03]} Bxd5 {[%emt 0:00:13]} 22. cxd5 {[%emt 0:04:29]} Rac8+ {[%emt 0:00:06]} 23. Kb3 {[%emt 0:00:04]} Qe3+ {[%emt 0:00:08]} 24. Ka4 {[%emt 0:00:05]} Rxd5 {[%emt 0:04:58]} 25. Rd1 {[%emt 0:02:26]} Qe8+ {[%emt 0:07:10]} 26. Ka3 {[%emt 0:02:16]} Re5 {[%emt 0:00:05]} 27. Qb4 {[%emt 0:02:34]} a5 {[%emt 0:00:53]} 28. Qxb7 {[%emt 0:01:21]} Qf8+ {[%emt 0:03:14]} 0-1

[Event "12th Chennai Open 2020"]
[Site "Chennai"]
[Date "2020.01.23"]
[Round "8.17"]
[White "Rohith Krishna S"]
[Black "Rahman, Ziaur"]
[Result "1-0"]
[ECO "D31"]
[WhiteElo "2289"]
[BlackElo "2434"]
[Annotator "ChessBase"]
[PlyCount "97"]
[EventDate "2020.01.19"]
[EventType "swiss"]
[EventCountry "IND"]
[SourceTitle "playchess.com"]
[Source "ChessBase"]
[SourceQuality "1"]
[TimeControl "5400+30"]

1. d4 {[%emt 0:00:00]} d5 {[%emt 0:00:29]} 2. c4 {[%emt 0:00:00]} e6 {[%emt 0:00:21]} 3. Nc3 {[%emt 0:00:02]} c6 {[%emt 0:00:36]} 4. cxd5 {[%emt 0:02:45]} exd5 {[%emt 0:00:08]} 5. Qc2 {[%emt 0:00:05]} Bd6 {[%emt 0:06:20]} 6. Nf3 {[%emt 0:00:38]} Ne7 {[%emt 0:00:36]} 7. e3 {[%emt 0:02:48]} Bf5 {[%emt 0:00:38]} 8. Bd3 {[%emt 0:00:07]} Bxd3 {[%emt 0:00:06]} 9. Qxd3 {[%emt 0:00:05]} Nd7 {[%emt 0:01:35]} 10. Bd2 {[%emt 0:02:36]} f5 {[%emt 0:04:58]} 11. Ng5 {[%emt 0:08:20]} Nf6 {[%emt 0:01:39]} 12. f4 {[%emt 0:02:33]} Qd7 {[%emt 0:00:55]} 13. Rb1 {[%emt 0:04:42]} O-O {[%emt 0:02:32]} 14. O-O {[%emt 0:00:19]} Ne4 {[%emt 0:00:53]} 15. Nf3 {[%emt 0:08:39]} a5 {[%emt 0:04:36]} 16. Na4 {[%emt 0:08:30]} Qe8 {[%emt 0:02:54]} 17. Rbc1 {[%emt 0:03:25]} Rf6 {[%emt 0:01:52]} 18. Be1 {[%emt 0:05:00]} Ng6 {[%emt 0:06:59]} 19. Rc2 {[%emt 0:02:12]} Nf8 {[%emt 0:04:26]} 20. Ne5 {[%emt 0:06:18]} Rh6 {[%emt 0:09:14]} 21. Nb6 {[%emt 0:06:21]} Ra6 {[%emt 0:03:26]} 22. Qb3 {[%emt 0:01:06]} Bxe5 {[%emt 0:07:05]} 23. fxe5 {[%emt 0:01:30]} Qh5 {[%emt 0:05:35]} 24. g3 {[%emt 0:00:21]} Qf7 {[%emt 0:05:48]} 25. g4 {[%emt 0:03:27]} Rg6 {[%emt 0:06:56]} 26. Rg2 {[%emt 0:00:16]} Qc7 {[%emt 0:00:32]} 27. Nxd5 {[%emt 0:01:34]} cxd5 {[%emt 0:00:09]} 28. Qxd5+ {[%emt 0:00:04]} Rae6 {[%emt 0:06:17]} 29. gxf5 {[%emt 0:07:17]} Rxg2+ {[%emt 0:00:08]} 30. Kxg2 {[%emt 0:00:05]} Qc6 {[%emt 0:00:03]} 31. Qxc6 {[%emt 0:00:49]} Rxc6 {[%emt 0:00:02]} 32. Kf3 {[%emt 0:00:47]} Ng5+ {[%emt 0:00:09]} 33. Kf4 {[%emt 0:00:05]} Nf7 {[%emt 0:02:18]} 34. Bxa5 {[%emt 0:00:09]} Rc2 {[%emt 0:00:16]} 35. Bb4 {[%emt 0:00:51]} Rxb2 {[%emt 0:00:14]} 36. a3 {[%emt 0:00:05]} Nd8 {[%emt 0:00:37]} 37. e6 {[%emt 0:00:09]} Nc6 {[%emt 0:01:36]} 38. e7 {[%emt 0:00:11]} Nxe7 {[%emt 0:00:03]} 39. Bxe7 {[%emt 0:00:04]} Nd7 {[%emt 0:00:12]} 40. e4 {[%emt 0:00:52]} Kf7 {[%emt 0:00:43]} 41. Bd6 {[%emt 0:01:07]} Rxh2 {[%emt 0:00:55]} 42. Rb1 {[%emt 0:03:36]} b6 {[%emt 0:02:14]} 43. e5 {[%emt 0:01:08]} Rh4+ {[%emt 0:00:05]} 44. Ke3 {[%emt 0:00:06]} Ke8 {[%emt 0:00:08]} 45. Rc1 {[%emt 0:00:06]} Kd8 {[%emt 0:00:15]} 46. Rg1 {[%emt 0:00:04]} b5 {[%emt 0:00:36]} 47. Rxg7 {[%emt 0:00:05]} Rh3+ {[%emt 0:00:07]} 48. Ke4 {[%emt 0:00:13]} Nb6 {[%emt 0:00:04]} 49. Bc7+ {[%emt 0:00:03]} 1-0